{"text_format":"1","workbook":"xlsx","n_sheets":2,"sheets":["بيانات اساسية","الشهادات"],"not_rendered":{"charts":0,"images":1,"macros":1,"external_links":0,"defined_names":2,"comments":0,"pivot_tables":0},"unopened":[],"bounds":{"document_bytes":16777216,"sheet_cells":100000,"rows_first":2000,"rows_last":500,"rows_between":2000,"halvings":0,"cell_chars":16384,"cell_head_chars":4096},"cells_cut":0,"cells_raw":0,"read":"whole","date_system":"1900"}

{"sheet":"بيانات اساسية","index":0,"n_rows":549,"n_cols":63,"rows_kept":549,"cut":false,"hidden":false,"merged":[[5,61,6,61],[4,8,8,8],[4,7,8,7],[4,3,8,3],[4,0,8,0],[4,2,8,2],[5,13,6,13],[4,43,6,43],[5,36,6,36],[5,25,6,25],[5,18,6,18],[5,31,6,31],[5,26,6,26]]}
[1,2,3,4,5,6,7,8,9,10,11,12,13,14,15,16,17,18,19,20,21,22,23,24,25,26,27,28,29,30,31,32,33,34,35,36,37,38,39,40,41,42,43,44,45,46,47,48,49,50,51,52,53,54,55,56,57,58,59,60,61,62,63]
[]
[]
[]
["مسلسل",null,"رقم الجلوس","تاريخ الميلاد","السن في ",null,null,"الرقم السري","الرقم السري","اللـغـة العـربـيـة ",null,null,null,null,"الـريـاضـيــــات",null,null,null,null,"العـــــــــــلـــوم",null,null,null,null,null,null,null,"الدراســـــــــــات",null,null,null,null,"اللغــة الإنـجـليـزيـة E",null,null,null,null,"نشاط تربوي \n( 1 )",null,null,"نشاط تربوي \n( 2 )",null,null,"مجموع المواد الأساسية\n + النشاطين المختارين","نشاط  ( 3 ) ",null,null,"نشاط  ( 4 ) ",null,null,"نشاط  ( 5 ) ",null,null,"نشاط  ( 6 ) ",null,null,"التربية الدينية"]
[null,null,null,null,"2010-10-01",null,null,null,null,"نصف أول",null,"نصف ثانى",null,"المـجـمـوع","نصف أول",null,"نصف ثانى",null,"المـجـمـوع","نصف  أول",null,null,"نصف ثانى",null,null,"مجموع العملى \nوالنصف الثانى","المجموع","نصـف أول",null,"نصـف ثانى",null,"المـجـمـوع","نصــف أول",null,"نصـف ثانى",null,"المـجـمـوع",null,null,null,null,null,null,null,null,null,null,null,null,null,null,null,null,null,null,null,"نصف أول",null,"نصف ثانى",null,null,"المـجـمـوع"]
[null,"اســــــــــــم الـتـلـمـيـذ",null,null,null,null,null,null,null,"ملف إنجاز (1)","نصف العام","ملف إنجاز (2)","أخر العام",null,"ملف إنجاز (1)","نصف العام","ملف إنجاز (2)","أخر العام",null,"ملف إنجاز (1)","عملى","نصف العام ","ملف إنجاز (2)","عملى","أخر العام ",null,null,"ملف إنجاز (1)","نصف العام","ملف إنجاز (2)","أخر العام",null,"ملف إنجاز (1)","نصف العام","ملف إنجاز (2)","أخر العام",null,"نصف العام","أخر العام ","المجموع","نصف العام","أخر العام ","المجموع",null,"نصف العام","أخر العام ","المجموع","نصف العام","أخر العام ","المجموع","نصف العام","أخر العام ","المجموع","نصف العام","أخر العام ","المجموع","ملف إنجاز (1)","نصف العام","ملف إنجاز (2)","أخر العام","المجموع"]
[null,"النهاية الكبري",null,null,null,null,null,null,null,25,25,25,25,100,15,15,15,15,60,10,2,8,10,2,8,10,40,10,10,10,10,40,10,10,10,10,40,10,10,20,10,10,20,320,10,10,20,10,10,20,10,10,20,10,10,20,10,10,10,10,40,40]
[null,"النهاية الصغرى",null,null,"يوم","شهر","سنه",null,null,null,null,null,8,50,null,null,null,4.5,30,null,null,null,null,null,null,3,20,null,null,null,3,20,null,null,null,3,20,null,3,10,null,3,10,160,null,3,10,null,3,10,null,3,10,null,3,10,null,null,null,3,20,20]
[1,"احمد",503,null,5,6,7,8,9,10,11,12,13,14,15,16,17,18,19,20,21,22,23,24,25,26,27,28,29,30,31,32,33,34,35,36,37,38,39,40,41,42,43,44,45,46,47,48,49,50,51,52,53,54,55,56,57,58,59,60,61,null,"ناجح"]
[2,"اسماعيل12",502,null,null,null,null,null,null,null,null,null,null,21,null,null,null,null,21,null,null,null,null,null,null,null,90,null,null,null,null,80,null,null,null,null,21,null,null,55,null,null,80,{"$f":"SUM(N11,S11,AA11,AF11,AK11,AN11,AQ11)","v":368},null,null,44,null,null,null,null,null,null,null,null,null,null,null,null,null,80,null,"ناجح"]
[3,"اسماعيل14",504,null,null,null,null,null,null,null,null,null,null,80,null,null,null,null,80,null,null,null,null,null,null,null,55,null,null,null,null,21,null,null,null,null,80,null,null,90,null,null,21,427,null,null,41,null,null,null,null,null,null,null,null,null,null,null,null,null,21,null,"ناجح"]
[4,"اسماعيل15",505,null,null,null,null,null,null,null,null,null,null,55,null,null,null,null,55,null,null,null,null,null,null,null,21,null,null,null,null,90,null,null,null,null,55,null,null,80,null,null,90,446,null,null,90,null,null,null,null,null,null,null,null,null,null,null,null,null,90,null,"دور تان"]
[5,"اسماعيل16",506,null,null,null,null,null,null,null,null,null,null,21,null,null,null,null,21,null,null,null,null,null,null,null,90,null,null,null,null,80,null,null,null,null,21,null,null,55,null,null,80,368,null,null,80,null,null,null,null,null,null,null,null,null,null,null,null,null,80,null,"ناجح"]
[6,"اسماعيل17",507,null,null,null,null,null,null,null,null,null,null,90,null,null,null,null,90,null,null,null,null,null,null,null,80,null,null,null,null,55,null,null,null,null,90,null,null,21,null,null,55,481,null,null,55,null,null,null,null,null,null,null,null,null,null,null,null,null,55,null,"ناجح"]
[7,"اسماعيل18",508,null,null,null,null,null,null,null,null,null,null,80,null,null,null,null,80,null,null,null,null,null,null,null,55,null,null,null,null,21,null,null,null,null,80,null,null,90,null,null,21,427,null,null,21,null,null,null,null,null,null,null,null,null,null,null,null,null,21,null,"ناجح"]
[8,"اسماعيل19",509,null,null,null,null,null,null,null,null,null,null,55,null,null,null,null,55,null,null,null,null,null,null,null,21,null,null,null,null,90,null,null,null,null,55,null,null,80,null,null,90,446,null,null,90,null,null,null,null,null,null,null,null,null,null,null,null,null,90,null,"ناجح"]
[9,"اسماعيل2",510,null,null,null,null,null,null,null,null,null,null,80,null,null,null,null,89,null,null,null,null,null,null,null,45,null,null,null,null,53,null,null,null,null,26,null,null,90,null,null,16,399,null,null,60.5,null,null,null,null,null,null,null,null,null,null,null,null,null,10,null,"ناجح"]
[10,"اسماعيل20",511,null,null,null,null,null,null,null,null,null,null,21,null,null,null,null,21,null,null,null,null,null,null,null,90,null,null,null,null,80,null,null,null,null,21,null,null,55,null,null,80,368,null,null,60.1,null,null,null,null,null,null,null,null,null,null,null,null,null,80,null,"ناجح"]
[11,"اسماعيل21",512,null,null,null,null,null,null,null,null,null,null,90,null,null,null,null,90,null,null,null,null,null,null,null,80,null,null,null,null,55,null,null,null,null,90,null,null,21,null,null,55,481,null,null,59.7,null,null,null,null,null,null,null,null,null,null,null,null,null,55,null,"ناجح"]
[12,"اسماعيل22",513,null,null,null,null,null,null,null,null,null,null,80,null,null,null,null,80,null,null,null,null,null,null,null,55,null,null,null,null,21,null,null,null,null,80,null,null,90,null,null,21,427,null,null,59.3,null,null,null,null,null,null,null,null,null,null,null,null,null,21,null,"ناجح"]
[13,"اسماعيل23",514,null,null,null,null,null,null,null,null,null,null,55,null,null,null,null,55,null,null,null,null,null,null,null,21,null,null,null,null,90,null,null,null,null,55,null,null,80,null,null,90,446,null,null,58.9,null,null,null,null,null,null,null,null,null,null,null,null,null,90,null,"ناجح"]
[14,"اسماعيل24",515,null,null,null,null,null,null,null,null,null,null,21,null,null,null,null,21,null,null,null,null,null,null,null,90,null,null,null,null,80,null,null,null,null,21,null,null,55,null,null,80,368,null,null,58.5,null,null,null,null,null,null,null,null,null,null,null,null,null,80,null,"دور تان"]
[15,"اسماعيل25",516,null,null,null,null,null,null,null,null,null,null,90,null,null,null,null,90,null,null,null,null,null,null,null,80,null,null,null,null,55,null,null,null,null,90,null,null,21,null,null,55,481,null,null,58.1,null,null,null,null,null,null,null,null,null,null,null,null,null,55,null,"دور تان"]
[16,"اسماعيل26",517,null,null,null,null,null,null,null,null,null,null,80,null,null,null,null,80,null,null,null,null,null,null,null,55,null,null,null,null,21,null,null,null,null,80,null,null,90,null,null,21,427,null,null,57.7,null,null,null,null,null,null,null,null,null,null,null,null,null,21,null,"دور تان"]
[17,"اسماعيل27",518,null,null,null,null,null,null,null,null,null,null,55,null,null,null,null,55,null,null,null,null,null,null,null,21,null,null,null,null,90,null,null,null,null,55,null,null,80,null,null,90,446,null,null,57.3,null,null,null,null,null,null,null,null,null,null,null,null,null,90,null,"دور تان"]
[18,"اسماعيل28",519,null,null,null,null,null,null,null,null,null,null,21,null,null,null,null,21,null,null,null,null,null,null,null,90,null,null,null,null,80,null,null,null,null,21,null,null,55,null,null,80,368,null,null,56.9,null,null,null,null,null,null,null,null,null,null,null,null,null,80,null,"دور تان"]
[19,"اسماعيل29",520,null,null,null,null,null,null,null,null,null,null,90,null,null,null,null,90,null,null,null,null,null,null,null,80,null,null,null,null,55,null,null,null,null,90,null,null,21,null,null,55,481,null,null,56.5,null,null,null,null,null,null,null,null,null,null,null,null,null,55,null,"دور تان"]
[20,"اسماعيل3",521,"2000-06-20",null,null,null,null,null,null,null,null,null,55,null,null,null,null,90,null,null,null,null,null,null,null,80,null,null,null,null,90,null,null,null,null,27,null,null,80,null,null,17,439,null,null,56.1,null,null,null,null,null,null,null,null,null,null,null,null,null,90,null,"ناجح"]
[21,"اسماعيل30",522,null,null,null,null,null,null,null,null,null,null,80,null,null,null,null,80,null,null,null,null,null,null,null,55,null,null,null,null,21,null,null,null,null,80,null,null,90,null,null,21,427,null,null,55.7,null,null,null,null,null,null,null,null,null,null,null,null,null,21,null,"دور تان"]
[22,"اسماعيل31",523,null,null,null,null,null,null,null,null,null,null,55,null,null,null,null,55,null,null,null,null,null,null,null,21,null,null,null,null,90,null,null,null,null,55,null,null,80,null,null,90,446,null,null,55.3,null,null,null,null,null,null,null,null,null,null,null,null,null,90,null,"دور تان"]
[23,"اسماعيل5",524,null,null,null,null,null,null,null,null,null,null,90,null,null,null,null,96,null,null,null,null,null,null,null,150,null,null,null,null,55,null,null,null,null,90,null,null,21,null,null,19,521,null,null,54.9,null,null,null,null,null,null,null,null,null,null,null,null,null,55,null,"دور تان"]
[24,"اسماعيل6",525,null,null,null,null,null,null,null,null,null,null,80,null,null,null,null,80,null,null,null,null,null,null,null,185,null,null,null,null,21,null,null,null,null,80,null,null,90,null,null,20,556,null,null,null,null,null,null,null,null,null,null,null,null,null,null,null,null,21,null,"دور تان"]
[25,"اسماعيل7",526,null,null,null,null,null,null,null,null,null,null,55,null,null,null,null,55,null,null,null,null,null,null,null,220,null,null,null,null,90,null,null,null,null,55,null,null,80,null,null,21,576,null,null,null,null,null,null,null,null,null,null,null,null,null,null,null,null,90,null,"دور تان"]
[26,"اسماعيل8",527,null,null,null,null,null,null,null,null,null,null,21,null,null,null,null,21,null,null,null,null,null,null,null,90,null,null,null,null,80,null,null,null,null,21,null,null,55,null,null,22,310,null,null,null,null,null,null,null,null,null,null,null,null,null,null,null,null,80,null,"دور تان"]
[27,"اسماعيل9",528,null,null,null,null,null,null,null,null,null,null,90,null,null,null,null,90,null,null,null,null,null,null,null,80,null,null,null,null,55,null,null,null,null,90,null,null,21,null,null,23,449,null,null,null,null,null,null,null,null,null,null,null,null,null,null,null,null,55,null,"دور تان"]
[28,"عبده",500,null,null,null,null,null,null,null,null,null,null,80,null,null,null,null,80,null,null,null,null,null,null,null,55,null,null,null,null,21,null,null,null,null,80,null,null,90,null,null,24,430,null,null,null,null,null,null,null,null,null,null,null,null,null,null,null,null,21,null,"ناجح"]
[29,"ياسر",501,null,null,null,null,null,null,null,null,null,null,55,null,null,null,null,55,null,null,null,null,null,null,null,21,null,null,null,null,90,null,null,null,null,55,null,null,80,null,null,25,381,null,null,null,null,null,null,null,null,null,null,null,null,null,null,null,null,90,null,"ناجح"]
[30,"ياسر",1000,"2000-10-01",null,null,null,null,null,null,null,null,null,90,null,null,null,null,88,null,null,null,null,null,null,null,10,null,null,null,null,223,null,null,null,null,25,null,null,22,null,null,15,473,null,null,null,null,null,null,null,null,null,null,null,null,null,null,null,null,20,null,"ناجح"]
[31,"يسري1",null,"2000-07-30",null,null,null,null,null,null,null,null,null,21,null,null,null,null,85,null,null,null,null,null,null,null,115,null,null,null,null,80,null,null,null,null,28,null,null,55,null,null,18,402,null,null,null,null,null,null,null,null,null,null,null,null,null,null,null,null,80,null,"ناجح"]
[32,"يسري2",null,null,null,null,null,null,null,null,null,null,null,null,null,null,null,null,21,null,null,null,null,null,null,null,90,null,null,null,null,80,null,null,null,null,21,null,null,55,null,null,80,347,null,null,80,null,null,null,null,null,null,null,null,null,null,null,null,null,80,null,"ناجح"]
[33,"يسري3",null,null,null,null,null,null,null,null,null,null,null,null,null,null,null,null,90,null,null,null,null,null,null,null,80,null,null,null,null,55,null,null,null,null,90,null,null,null,null,null,55,370,null,null,55,null,null,null,null,null,null,null,null,null,null,null,null,null,55,null,"ناجح"]
[34,"يسري4",null,null,null,null,null,null,null,null,null,null,null,null,null,null,null,null,80,null,null,null,null,null,null,null,55,null,null,null,null,null,null,null,null,null,80,null,null,null,null,null,21,{"$f":"SUM(N43,S43,AA43,AF43,AK43,AN43,AQ43)","v":236},null,null,21,null,null,null,null,null,null,null,null,null,null,null,null,null,80,null,"ناجح"]
[35,"يسري5",null,null,null,null,null,null,null,null,null,null,null,null,null,null,null,null,55,null,null,null,null,null,null,null,21,null,null,null,null,null,null,null,null,null,55,null,null,null,null,null,90,221,null,null,90,null,null,null,null,null,null,null,null,null,null,null,null,null,55,null,"ناجح"]
[36,"يسري6",null,null,null,null,null,null,null,null,null,null,null,null,null,null,null,null,null,null,null,null,null,null,null,null,90,null,null,null,null,null,null,null,null,null,null,null,null,null,null,null,80,170,null,null,80,null,null,null,null,null,null,null,null,null,null,null,null,null,80,null,"ناجح"]
[37,"يسري7",null,null,null,null,null,null,null,null,null,null,null,null,null,null,null,null,null,null,null,null,null,null,null,null,80,null,null,null,null,null,null,null,null,null,null,null,null,null,null,null,55,135,null,null,55,null,null,null,null,null,null,null,null,null,null,null,null,null,55,null,"ناجح"]
[38,"يسري8",null,null,null,null,null,null,null,null,null,null,null,null,null,null,null,null,null,null,null,null,null,null,null,null,55,null,null,null,null,null,null,null,null,null,null,null,null,null,null,null,21,76,null,null,21,null,null,null,null,null,null,null,null,null,null,null,null,null,80,null,"ناجح"]
[39,"يسري9",null,null,null,null,null,null,null,null,null,null,null,null,null,null,null,null,null,null,null,null,null,null,null,null,null,null,null,null,null,null,null,null,null,null,null,null,null,null,null,null,90,90,null,null,90,null,null,null,null,null,null,null,null,null,null,null,null,null,55,null,"ناجح"]
[40,null,null,null,null,null,null,null,null,null,null,null,null,null,null,null,null,null,null,null,null,null,null,null,null,null,null,null,null,null,null,null,null,null,null,null,null,null,null,null,null,null,80,80,null,null,80,null,null,null,null,null,null,null,null,null,null,null,null,null,80]
[41,null,null,null,null,null,null,null,null,null,null,null,null,null,null,null,null,null,null,null,null,null,null,null,null,null,null,null,null,null,null,null,null,null,null,null,null,null,null,null,null,null,55,55,null,null,55,null,null,null,null,null,null,null,null,null,null,null,null,null,55]
[42,null,null,null,null,null,null,null,null,null,null,null,null,null,null,null,null,null,null,null,null,null,null,null,null,null,null,null,null,null,null,null,null,null,null,null,null,null,null,null,null,null,null,0,null,null,21,null,null,null,null,null,null,null,null,null,null,null,null,null,80]
[43,null,null,null,null,null,null,null,null,null,null,null,null,null,null,null,null,null,null,null,null,null,null,null,null,null,null,null,null,null,null,null,null,null,null,null,null,null,null,null,null,null,null,0,null,null,90]
[44,null,null,null,null,null,null,null,null,null,null,null,null,null,null,null,null,null,null,null,null,null,null,null,null,null,null,null,null,null,null,null,null,null,null,null,null,null,null,null,null,null,null,0,null,null,80]
[45,null,null,null,null,null,null,null,null,null,null,null,null,null,null,null,null,null,null,null,null,null,null,null,null,null,null,null,null,null,null,null,null,null,null,null,null,null,null,null,null,null,null,0,null,null,55]
[46,null,null,null,null,null,null,null,null,null,null,null,null,null,null,null,null,null,null,null,null,null,null,null,null,null,null,null,null,null,null,null,null,null,null,null,null,null,null,null,null,null,null,0]
[47,null,null,null,null,null,null,null,null,null,null,null,null,null,null,null,null,null,null,null,null,null,null,null,null,null,null,null,null,null,null,null,null,null,null,null,null,null,null,null,null,null,null,0]
[48,null,null,null,null,null,null,null,null,null,null,null,null,null,null,null,null,null,null,null,null,null,null,null,null,null,null,null,null,null,null,null,null,null,null,null,null,null,null,null,null,null,null,0]
[49,null,null,null,null,null,null,null,null,null,null,null,null,null,null,null,null,null,null,null,null,null,null,null,null,null,null,null,null,null,null,null,null,null,null,null,null,null,null,null,null,null,null,0]
[50,null,null,null,null,null,null,null,null,null,null,null,null,null,null,null,null,null,null,null,null,null,null,null,null,null,null,null,null,null,null,null,null,null,null,null,null,null,null,null,null,null,null,0]
[51]
[52]
[53]
[54]
[55]
[56]
[57]
[58]
[59]
[60]
[61]
[62]
[63]
[64]
[65]
[66]
[67]
[68]
[69]
[70]
[71]
[72]
[73]
[74]
[75]
[76]
[77]
[78]
[79]
[80]
[81]
[82]
[83]
[84]
[85]
[86]
[87]
[88]
[89]
[90]
[91]
[92]
[93]
[94]
[95]
[96]
[97]
[98]
[99]
[100]
[101]
[102]
[103]
[104]
[105]
[106]
[107]
[108]
[109]
[110]
[111]
[112]
[113]
[114]
[115]
[116]
[117]
[118]
[119]
[120]
[121]
[122]
[123]
[124]
[125]
[126]
[127]
[128]
[129]
[130]
[131]
[132]
[133]
[134]
[135]
[136]
[137]
[138]
[139]
[140]
[141]
[142]
[143]
[144]
[145]
[146]
[147]
[148]
[149]
[150]
[151]
[152]
[153]
[154]
[155]
[156]
[157]
[158]
[159]
[160]
[161]
[162]
[163]
[164]
[165]
[166]
[167]
[168]
[169]
[170]
[171]
[172]
[173]
[174]
[175]
[176]
[177]
[178]
[179]
[180]
[181]
[182]
[183]
[184]
[185]
[186]
[187]
[188]
[189]
[190]
[191]
[192]
[193]
[194]
[195]
[196]
[197]
[198]
[199]
[200]
[201]
[202]
[203]
[204]
[205]
[206]
[207]
[208]
[209]
[210]
[211]
[212]
[213]
[214]
[215]
[216]
[217]
[218]
[219]
[220]
[221]
[222]
[223]
[224]
[225]
[226]
[227]
[228]
[229]
[230]
[231]
[232]
[233]
[234]
[235]
[236]
[237]
[238]
[239]
[240]
[241]
[242]
[243]
[244]
[245]
[246]
[247]
[248]
[249]
[250]
[251]
[252]
[253]
[254]
[255]
[256]
[257]
[258]
[259]
[260]
[261]
[262]
[263]
[264]
[265]
[266]
[267]
[268]
[269]
[270]
[271]
[272]
[273]
[274]
[275]
[276]
[277]
[278]
[279]
[280]
[281]
[282]
[283]
[284]
[285]
[286]
[287]
[288]
[289]
[290]
[291]
[292]
[293]
[294]
[295]
[296]
[297]
[298]
[299]
[300]
[301]
[302]
[303]
[304]
[305]
[306]
[307]
[308]
[309]
[310]
[311]
[312]
[313]
[314]
[315]
[316]
[317]
[318]
[319]
[320]
[321]
[322]
[323]
[324]
[325]
[326]
[327]
[328]
[329]
[330]
[331]
[332]
[333]
[334]
[335]
[336]
[337]
[338]
[339]
[340]
[341]
[342]
[343]
[344]
[345]
[346]
[347]
[348]
[349]
[350]
[351]
[352]
[353]
[354]
[355]
[356]
[357]
[358]
[359]
[360]
[361]
[362]
[363]
[364]
[365]
[366]
[367]
[368]
[369]
[370]
[371]
[372]
[373]
[374]
[375]
[376]
[377]
[378]
[379]
[380]
[381]
[382]
[383]
[384]
[385]
[386]
[387]
[388]
[389]
[390]
[391]
[392]
[393]
[394]
[395]
[396]
[397]
[398]
[399]
[400]
[401]
[402]
[403]
[404]
[405]
[406]
[407]
[408]
[409]
[410]
[411]
[412]
[413]
[414]
[415]
[416]
[417]
[418]
[419]
[420]
[421]
[422]
[423]
[424]
[425]
[426]
[427]
[428]
[429]
[430]
[431]
[432]
[433]
[434]
[435]
[436]
[437]
[438]
[439]
[440]
[441]
[442]
[443]
[444]
[445]
[446]
[447]
[448]
[449]
[450]
[451]
[452]
[453]
[454]
[455]
[456]
[457]
[458]
[459]
[460]
[461]
[462]
[463]
[464]
[465]
[466]
[467]
[468]
[469]
[470]
[471]
[472]
[473]
[474]
[475]
[476]
[477]
[478]
[479]
[480]
[481]
[482]
[483]
[484]
[485]
[486]
[487]
[488]
[489]
[490]
[491]
[492]
[493]
[494]
[495]
[496]
[497]
[498]
[499]
[500]
[501]
[502]
[503]
[504]
[505]
[506]
[507]
[508]
[509]
[510]
[511]
[512]
[513]
[514]
[515]
[516]
[517]
[518]
[519]
[520]
[521]
[522]
[523]
[524]
[525]
[526]
[527]
[528]
[529]
[530]
[531]
[532]
[533]
[534]
[535]
[536]
[537]
[538]
[539]
[540]

{"sheet":"الشهادات","index":1,"n_rows":22,"n_cols":16,"rows_kept":22,"cut":false,"hidden":false,"merged":[[14,2,14,3],[21,11,22,12]]}
[null,"اعمدة المواد",14,19,27,32,37,40,43,44,47,50,53,56,61,62]
[]
[null,"عدد المتقدمين",{"$f":"COUNTA(INDEX(MyRng,0,2))","v":39}]
[null,"ناجح",{"$f":"COUNTIF(INDEX(MyRng,0,63),B4)","v":25}]
[null,"دور تان",{"$f":"COUNTIF(INDEX(MyRng,0,63),B5)","v":14}]
[]
[]
[]
[]
[]
[]
[null,null,null,null,null,null,"                                                                                                                                                    "]
[null,"ادارة",null,null,null,"نتيجة الصف ........ للعام الدراسي  ..........."]
[null,"مدرسة"]
[null,"الاسم",{"$f":"IF($A12=\"\",\"\",INDEX(MyRng,$A12,2))","v":""},null,null,"رقم الجلوس ...",{"$f":"IF($A12=\"\",\"\",INDEX(MyRng,$A12,3))","v":""},null,"الرقم السري...",{"$f":"IF($A12=\"\",\"\",INDEX(MyRng,$A12,8))","v":""}]
[]
[null,"المادة","عربي","رياضيات","علوم","دراسات","انجليزي","نشاط تربوي","نشاط تربوي","المجموع","نشاط 3","نشاط 4","نشاط 5","نشاط 6","تربية دينية","المجموع الكلي"]
[null,"النهاية الكبرى",{"$f":"OFFSET(MyRng,-2,C$1-1,1,1)","v":100},60,40,40,40,20,20,320,20,20,20,20,40,40]
[null,"النهاية الصغرى",{"$f":"OFFSET(MyRng,-1,C$1-1,1,1)","v":50},30,20,20,20,10,10,160,10,10,10,10,20,20]
[null,"درجة الطالب",{"$f":"IF($A12=\"\",\"\",INDEX(MyRng,$A12,C$1))","v":""},"","","","","","","","","","","","",""]
[null,null,null,"نسبة الطالب...",null,null,"ناجح ومنقول الى الصف ...."]
[null,"رئيس الكنترول",null,"ناظر المدرسة",null,"مدير المدرسة                  ",null,null,null,null,null,{"$f":"IF($A12=\"\",\"\",INDEX(MyRng,$A12,63))","v":""}]